Cogmind - Beta 16 @@@ ROGUE MODE // 2025.11.08 @ 00:15:08 Player: Anting Result: Destroyed by G-47 Trooper with Particle Gun Performance ------------- Evolutions (2) 1000 Regions Visited (4) 800 Robots Destroyed (81) 405 Value Destroyed (2313) 2313 Prototype IDs (5) 100 Alien Tech Used (0) 0 Bonus (195) 195 TOTAL SCORE: 4813 Bonus ------- High Alert Combat Kills 195 Cogmind --------- Core Integrity 0/550 Matter 300/300 Energy 165/275 System Corruption 0% Temperature Cool (66) Movement Treading (160) Location -8/Storage Parts ------- > --- POWER (1) -------- Deuterium Engine > --- PROPULSION (3) --- Light Treads Light Treads Light Treads > --- UTILITY (4) ------ Improved Heat Sink Large Storage Unit Makeshift Thermal Plating Hacking Suite > --- WEAPON (3) ------- Heavy EM Shotgun Improved Medium Laser Improved Medium Laser > --- INVENTORY (15) --- Light Treads Light Treads Light Treads Aerolev Unit Aerolev Unit Aerolev Unit Heat Sink Huge Storage Unit Advanced Targeting Computer Heavy Laser EM Pulse Cannon Ion Cannon Enhanced Autogun Gauss Rifle Missile Launcher Peak State ------------ > --- POWER ------------ Deuterium Engine > --- PROPULSION ------- Light Treads Light Treads Light Treads > --- UTILITY ---------- Improved Heat Sink Large Storage Unit Makeshift Thermal Plating Hacking Suite > --- WEAPON ----------- Heavy EM Shotgun Improved Medium Laser Improved Medium Laser > --- INVENTORY -------- Light Treads Light Treads Light Treads Aerolev Unit Aerolev Unit Aerolev Unit Heat Sink Advanced Targeting Computer Heavy Laser EM Pulse Cannon Ion Cannon Enhanced Autogun Gauss Rifle Missile Launcher [Rating: 31] Favorites ----------- Power Light Ion Engine Engine Light Ion Engine Propulsion Light Treads Treads Light Treads Leg Aluminum Leg Wheel Wheel Hover Unit Aerolev Unit Utility Small Storage Unit Device Seismic Detector Storage Small Storage Unit Hackware Hacking Suite Protection Light Armor Plating Weapon Small Laser Energy Gun Small Laser Energy Cannon Particle Cannon Ballistic Gun Assault Rifle Launcher Missile Launcher Build | -11 -10 -10 -8 -8 ------- Run | Yrd Mat Sub Mat Sto Slots Evolved 4 | . . . 4 . Power . | . . . . . Propulsion 1 | . . . 1 . Utility 2 | . . . 2 . Weapon 1 | . . . 1 . Parts Attached 65 | 8 5 5 41 6 Power 6 | 1 1 1 3 . Engine 6 | 1 1 1 3 . Core . | . . . . . Reactor . | . . . . . Propulsion 15 | 2 2 1 8 2 Treads 11 | . 2 . 7 2 Leg 2 | 2 . . . . Wheel 1 | . . 1 . . Hover 1 | . . . 1 . Flight . | . . . . . Utility 15 | 3 1 . 10 1 Device 6 | 2 . . 4 . Storage 3 | 1 . . 2 . Processor . | . . . . . Hackware 1 | . . . . 1 Protection 5 | . 1 . 4 . Artifact . | . . . . . Weapon 29 | 2 1 3 20 3 Energy Gun 13 | 1 1 2 7 2 Energy Cannon 3 | . . . 3 . Ballistic Gun 9 | 1 . 1 7 . Ballistic Cannon . | . . . . . Launcher 4 | . . . 3 1 Special Weapon . | . . . . . Impact Weapon . | . . . . . Slashing Weapon . | . . . . . Piercing Weapon . | . . . . . Special Melee Weapon . | . . . . . Unidentified Prototypes 5 | . . . 4 1 Parts Lost 24 | . 1 5 15 3 Power 4 | . 1 2 1 . Propulsion 5 | . . 2 2 1 Utility 5 | . . . 4 1 Weapon 10 | . . 1 8 1 Highest Loss Streak 11 | . 1 3 11 2 To Critical Strikes 2 | . 1 1 . . Average Backups 8 | 5 7 7 9 14 Power . | . 1 . . . Propulsion 1 | 1 . . 2 6 Utility 3 | . 4 4 3 2 Weapon 3 | 1 1 2 3 6 Tool/Special . | . . . . . Unused Backups 16 | . 2 . 7 7 Power . | . . . . . Propulsion 4 | . . . . 4 Utility 7 | . 1 . 4 2 Weapon 5 | . 1 . 3 1 Tool/Special . | . . . . . Average Slot Usage (%) 82 | . 99 66 79 96 Engine 7 | . 13 5 4 9 Treads 17 | . 24 4 20 25 Device 13 | . 13 12 14 9 Storage 11 | . 14 14 7 9 Protection 4 | . . 1 7 8 Energy Gun 14 | . 14 18 7 25 Energy Cannon 1 | . . . 3 . Ballistic Gun 10 | . 14 8 12 . Peak Build Rating 31 | 7 8 10 28 31 Average Rating 12 | 4 7 6 17 29 On Entrance 10 | . 7 8 8 28 Avg Prop Armor Cover (%) 26 | . . . 26 . Naked Turns 12 | . . . 12 . Heaviest Build 46 | 15 15 15 46 46 Greatest Support 60 | 20 40 40 60 60 Greatest Overweight (x) 4 | 3 . 4 4 1 Average Overweight (x) . | . . 2 . . Largest Inventory Capacity 15 | 8 8 8 15 15 Average Capacity 9 | 7 8 8 10 15 Most Carried 15 | 7 8 8 15 15 Average Carried 8 | 5 7 7 9 14 Final Capacity 15 | 8 8 8 15 15 Final Carried 15 | 6 8 8 15 15 Class Distribution -------------------- 66% | Mutant 31% | Scavenger-Tank Dominant Class ---------------- Mutant | -10/Materials Mutant | -10/Subcaves Scavenger-Tank | -8/Materials Scavenger-Tank | -8/Storage Resources | -11 -10 -10 -8 -8 ----------- Run | Yrd Mat Sub Mat Sto Matter Collected 1898 | 378 188 242 987 103 Remotely . | . . . . . Salvage Created 2971 | 130 289 97 1501 954 Parts 152 | 10 18 6 77 41 Haulers Intercepted 7 | . . . 4 3 Recyclers Shooed 6 | 1 1 . . 4 Parts Field Recycled . | . . . . . Retrieved Matter . | . . . . . Parts Self-Destructed 14 | . . 14 . . Prevented . | . . . . . Parts Restored . | . . . . . Kills | -11 -10 -10 -8 -8 ------- Run | Yrd Mat Sub Mat Sto Combat Hostiles Destroyed 62 | . 11 4 31 16 Guns 36 | . 11 3 12 10 Cannons 5 | . . . 5 . AOE 17 | . . . 13 4 Classes Destroyed 14 | 2 2 1 8 1 Worker 3 | . . . 3 . Builder 1 | . . . . 1 Tunneler 3 | 3 . . . . Hauler 7 | . . . 4 3 Recycler 3 | 1 . . 1 1 Operator 1 | . . . 1 . Watcher 1 | . . . 1 . Swarmer 19 | . 6 3 6 4 Grunt 27 | . 5 . 14 8 Brawler 1 | . . . 1 . Duelist 1 | . . . 1 . Sentry 10 | . . . 6 4 Hunter 3 | . . . 3 . Subdweller 1 | . . 1 . . Best Kill Streak 12 | 2 5 3 12 5 Combat Bots Only 10 | . 5 3 10 5 Max Kills in Single Turn 3 | 1 1 1 3 2 Gunslinging . | . . . . . Exploded 3 | . . . 3 1 Melee . | . . . . . Uniques/NPCs Destroyed . | . . . . . Combat | -11 -10 -10 -8 -8 -------- Run | Yrd Mat Sub Mat Sto Hostile Shots Fired 356 | . 74 29 185 68 Missed 102 | . 18 6 60 18 Hits 254 | . 56 23 125 50 Melee 2 | . . . 2 . Projectile 252 | . 56 23 123 50 AOE 1 | . . . . 1 Critical Strikes 14 | . 2 1 7 4 Damage Taken 3851 | . 537 513 1968 833 Core 746 | . 83 107 360 196 Absorbed by Shields . | . . . . . Ignored by Resistances 24 | . . . 2 22 Core Remaining (%) 62 | 100 . 24 . . Volleys Fired 257 | 41 47 11 120 38 Largest 3 | 1 2 2 3 3 Hottest 162 | 20 60 90 156 162 Shots Fired 446 | 41 84 22 211 88 Gun 399 | 41 84 22 164 88 Cannon 31 | . . . 31 . Launcher 16 | . . . 16 . Special . | . . . . . Kinetic 224 | 41 47 4 132 . Thermal 131 | . 36 11 48 36 Explosive 9 | . . . 9 . Electromagnetic 82 | . 1 7 22 52 Robot Hit Streak 16 | 4 14 10 13 16 Robot Miss Streak 4 | 3 4 1 3 4 Penetration Max . | . . . . . Secondary Targets 1 | . . 1 . . Max Gunslinging Chain 1 | . . 1 . . Shots Hit Robots 293 | 21 51 19 135 67 Core Hits 148 | 5 19 5 77 42 Critical Kills . | . . . . . Critical Parts Destroyed . | . . . . . Critical Strikes 5 | . . 2 1 2 Burn 5 | . . 2 1 2 Melee Attacks . | . . . . . Impact . | . . . . . Slashing . | . . . . . Piercing . | . . . . . Sneak Attacks . | . . . . . Combat Hostiles . | . . . . . Follow-up Attacks . | . . . . . Damage Inflicted 6524 | 264 629 275 3457 1899 Guns 3995 | 264 627 275 1551 1278 Cannons 504 | . . . 504 . Explosions 2011 | . . . 1393 618 Melee . | . . . . . Ramming 14 | . 2 . 9 3 Kinetic 2619 | 264 407 43 1905 . Thermal 1852 | . 220 117 578 937 Explosive 484 | . . . 484 . Electromagnetic 1555 | . . 115 481 959 Impact . | . . . . . Slashing . | . . . . . Piercing . | . . . . . Highest Corruption 1 | . 1 1 . . Average Corruption 1 | . 1 1 . . Corruption Purged . | . . . . . Corruption Blocked . | . . . . . Effects 9 | . . 9 . . Message Errors 2 | . . 2 . . Matter Fused 3 | . . 3 . . Heat Flow Errors 3 | . . 3 . . Data Loss (minor) 1 | . . 1 . . Overload Shots . | . . . . . Overflow Damage 51 | . . . 27 24 Projectiles . | . . . . . Explosions 51 | . . . 27 24 Melee . | . . . . . Knockbacks . | . . . . . Impact . | . . . . . Kinetic . | . . . . . Secondary . | . . . . . Self-Inflicted Damage 117 | . . . 67 50 Shots 4 | . . . 2 2 Rammed 4 | . 1 . 2 1 Targets Rammed 4 | . 1 . 2 1 Kicked . | . . . . . Crushed . | . . . . . Highest Temperature 341 | . 166 223 147 341 Average Temperature 84 | . 55 95 36 133 Received Heat Transfer 1461 | . 150 24 855 432 Effects 3 | . . . . 3 Interference 2 | . . . . 2 Short Circuit 1 | . . . . 1 Siege Activations . | . . . . . Martial Activations . | . . . . . Shielding Activations . | . . . . . Robots Disrupted . | . . . . . Combat Hostiles . | . . . . . Robots Corrupted 4 | . . 1 1 2 Combat Hostiles 4 | . . 1 1 2 Parts Fried 9 | . . 1 3 5 Impact Corruptions . | . . . . . Robots Melted . | . . . . . Combat Hostiles . | . . . . . Parts Melted 5 | . . . 1 4 Heat Transferred 3743 | . 500 434 1258 1551 Parts Sabotaged . | . . . . . Parts Stolen . | . . . . . Parts Stripped . | . . . . . Power Chain Reactions 7 | . . . . 7 Alert | -11 -10 -10 -8 -8 ------- Run | Yrd Mat Sub Mat Sto Maximum Alert Level 2 | . . . 2 2 Low Security (%) 52 | 100 100 . 12 29 Level 1 17 | . . . 21 65 Level 2 30 | . . . 65 4 Level 3 . | . . . . . Level 4 . | . . . . . Level 5 . | . . . . . High Security . | . . . . . Max Security . | . . . . . Peak Influence 586 | 5 155 . 586 454 Initial 178 | . . . . 178 Average 219 | 1 40 . 384 278 Influence Increases 2077 | 20 310 150 1131 466 Destroy 0b10 Robot/C 1220 | . 220 60 620 320 Destroy 0b10 Robot/NC 95 | 20 . . 50 25 Destroy Leader 296 | . 40 . 170 86 Successful Hack 13 | . 5 . 8 . Select Force Hacks 30 | . 30 . . . Disable Machine 90 | . 15 . 75 . Destroy Structure 93 | . . . 73 20 Partial Spotted 30 | . . . 30 . Lose Combat Pursuer 210 | . . 90 105 15 Influence Decreases 1623 | 20 310 150 707 436 Entered New Map 246 | . . . . 246 Time Decay 1072 | 20 300 150 442 160 Lost Part 155 | . 10 . 115 30 Purge Threat 150 | . . . 150 . Squads Dispatched 12 | . 2 . 8 2 Investigation 4 | . 1 . 2 1 Extermination . | . . . . . Reinforcement 4 | . 1 . 2 1 Assault 1 | . . . 1 . Garrison 3 | . . . 3 . Intercept . | . . . . . Searches Triggered . | . . . . . Construction Impeded . | . . . . . Haulers Reinforced . | . . . . . Active Scanning Responses . | . . . . . Cargo Convoy Interrupts . | . . . . . Stealth | -11 -10 -10 -8 -8 --------- Run | Yrd Mat Sub Mat Sto Distress Signals 8 | . 2 . 4 2 Communications Jammed . | . . . . . Distress Signals . | . . . . . Times Spotted 88 | . 15 5 49 19 Peak Tracking Total 7 | . 5 5 7 7 Tactical Retreats 6 | . . 2 3 1 Traps | -11 -10 -10 -8 -8 ------- Run | Yrd Mat Sub Mat Sto Traps Triggered 5 | . . 4 1 . Indirectly . | . . . . . Trap Hack Attempts . | . . . . . Triggered . | . . . . . Disarmed . | . . . . . Reprogrammed . | . . . . . Reused . | . . . . . Traps Extracted . | . . . . . Installed . | . . . . . Triggered . | . . . . . Machines | -11 -10 -10 -8 -8 ---------- Run | Yrd Mat Sub Mat Sto Machines Disabled 6 | . 1 . 5 . Max in Single Turn 2 | . 1 . 2 . Machines Repaired . | . . . . . Machines Dismantled . | . . . . . Machines Sabotaged . | . . . . . Overloaded Fab Kills . | . . . . . Hacking | -11 -10 -10 -8 -8 --------- Run | Yrd Mat Sub Mat Sto Machines Accessed 8 | . 3 . 3 2 Terminals 7 | . 2 . 3 2 Fabricators . | . . . . . Repair Stations . | . . . . . Recycling Units 1 | . 1 . . . Scanalyzers . | . . . . . Garrison Access . | . . . . . Total Hacks 17 | . 5 . 9 3 Successful 7 | . 3 . 2 2 Failed 10 | . 2 . 7 1 Catastrophic 5 | . 1 . 4 . Database Lockouts . | . . . . . Manual 14 | . 5 . 9 . Terminals 16 | . 4 . 9 3 Fabricators . | . . . . . Repair Stations . | . . . . . Recycling Units 1 | . 1 . . . Scanalyzers . | . . . . . Garrison Access . | . . . . . Terminal Hacks 5 | . 1 . 2 2 Part Schematic 1 | . 1 . . . Open Door 2 | . . . . 2 Branch Access Points 1 | . . . 1 . Unreport Threat 1 | . . . 1 . Fabricator Hacks . | . . . . . Repair Station Hacks . | . . . . . Recycling Unit Hacks . | . . . . . Scanalyzer . | . . . . . Garrison Access Hacks . | . . . . . Unauthorized Hacks 2 | . 2 . . . Terminals 1 | . 1 . . . Botnet 1 | . 1 . . . Fabricators . | . . . . . Repair Stations . | . . . . . Recycling Units 1 | . 1 . . . Tunnel 1 | . 1 . . . Scanalyzers . | . . . . . Garrison Access . | . . . . . Data Cores Recovered . | . . . . . Used . | . . . . . Hacking Detections 6 | . 2 . 3 1 Full Trace Events 3 | . 1 . 2 . Feedback Events 1 | . 1 . . . Corruption 1 | . 1 . . . Feedback Blocked . | . . . . . Robot Schematics Acquired . | . . . . . Robots Built . | . . . . . Authchips . | . . . . . Time . | . . . . . Total Robot Build Rating . | . . . . . Part Schematics Acquired 1 | . 1 . . . Parts Built . | . . . . . Authchips . | . . . . . Time . | . . . . . Total Part Build Rating . | . . . . . Part Studies Acquired . | . . . . . Parts Repaired . | . . . . . Time . | . . . . . Parts Recycled . | . . . . . Recycled Matter . | . . . . . Retrieved Matter . | . . . . . Retrieved Components . | . . . . . Parts Scanalyzed . | . . . . . Part Schematics Acquired . | . . . . . Parts Damaged . | . . . . . Bothacking | -11 -10 -10 -8 -8 ------------ Run | Yrd Mat Sub Mat Sto Used RIF Installer . | . . . . . Robots Hacked . | . . . . . Non-combat . | . . . . . Combat . | . . . . . Robot Hacks Applied . | . . . . . Relay Couplers Released . | . . . . . Fabnet Peak Effective % . | . . . . . Robots Rewired . | . . . . . Allies Hacked . | . . . . . Hacks Repelled . | . . . . . Allies | -11 -10 -10 -8 -8 -------- Run | Yrd Mat Sub Mat Sto Total Allies . | . . . . . Largest Group . | . . . . . Highest-Rated Group . | . . . . . Highest-Rated Ally . | . . . . . Total Orders . | . . . . . Ally Attacks . | . . . . . Total Damage . | . . . . . Kills . | . . . . . Allies Corrupted . | . . . . . Allies Melted . | . . . . . Intel | -11 -10 -10 -8 -8 ------- Run | Yrd Mat Sub Mat Sto Active Infowar (turns) 2055 | 78 937 946 94 . Seismic 2055 | 78 937 946 94 . Robot Analysis Total . | . . . . . Derelict Logs Recovered . | . . . . . Drone Launches . | . . . . . Drone Recoveries . | . . . . . Exploration | -11 -10 -10 -8 -8 ------------- Run | Yrd Mat Sub Mat Sto Turns Passed 3831 | 225 968 1074 1242 322 Spaces Moved 1524 | 105 222 497 594 106 Core 592 | 20 . 405 167 . Treads 760 | . 172 84 398 106 Legs 135 | 85 50 . . . Wheels 37 | . . 8 29 . Hover . | . . . . . Flight . | . . . . . Fastest Speed 50 | 50 120 95 50 160 Average Speed 154 | 118 150 190 129 167 Slowest Speed 250 | 200 160 250 250 240 Overloaded Moves . | . . . . . Propulsion Burnouts . | . . . . . Robots Hopped . | . . . . . Potential Cave-ins . | . . . . . Cave-ins Triggered . | . . . . . Exploration Rate (%) 30 | 7 35 28 62 21 Regions Visited 4 Branch Regions 2 Pre-discovered Areas 1 | . 1 . . . Known Exits Taken 1 | . . . 1 . Unknown Exits Taken 3 | 1 1 1 . . Scrap Searched 1 | . . 1 . . Spaces Dug . | . . . . . Terrain Destroyed 99 | . . . 80 19 Melee . | . . . . . Projectile 1 | . . . 1 . AOE 98 | . . . 79 19 Terrain Rammed . | . . . . . Walls Destroyed . | . . . . . Machines Disabled . | . . . . . Actions | -11 -10 -10 -8 -8 --------- Run | Yrd Mat Sub Mat Sto Total 2597 | 160 772 596 891 178 Wait 642 | . 485 75 62 20 Move 1520 | 104 221 496 593 106 Hop . | . . . . . Pick Up 45 | 6 6 3 29 1 Fast Attach 39 | 6 2 3 23 5 Attach 20 | 1 2 2 14 1 Detach 4 | . 1 . 3 . Swap 24 | 2 2 3 15 2 Drop 42 | . 5 3 30 4 Fire 257 | 41 47 11 120 38 Melee . | . . . . . Ram . | . . . . . Kick . | . . . . . Crush 4 | . 1 . 2 1 Escape Stasis . | . . . . . Rewire . | . . . . . Trap . | . . . . . Miscellaneous . | . . . . . Route ------- -11/Scrapyard -10/Materials -10/Subcaves -8/Materials (discovered 2 exits: [*Fac] / *Sto) -8/Storage History --------- Turn | Location | Event 43 | -11/Scrapyard | Discovered new exit (range 16) 226 | -11/Scrapyard | Entered Materials 302 | -10/Materials | Build established: Mutant 1168 | -10/Materials | Discovered new exit (range 9) 1194 | -10/Materials | Entered Subcaves 1238 | -10/Subcaves | Shifting Twisted Machinery released Sub. Shrapnel Launcher 1242 | -10/Subcaves | Shifting Twisted Machinery released Riot Gun 1361 | -10/Subcaves | Disturbed a concealed Subdweller 1407 | -10/Subcaves | Lost 3 parts (1p2n) 1654 | -10/Subcaves | Core integrity fell below 50% 2192 | -10/Subcaves | Discovered new exit (range 10) 2268 | -10/Subcaves | Entered Materials 2268 | -8/Materials | Evolved 4 slots: Propulsion x1, Utility x2, Weapon x1 2400 | -8/Materials | Garrison activated, responded to threat 2413 | -8/Materials | Core integrity fell below 50% 2443 | -8/Materials | Lost 11 parts (1n4u6w) 2455 | -8/Materials | Destroyed 10 combat bots 2772 | -8/Materials | Discovered new exit (range 12) 2837 | -8/Materials | Build established: Scavenger-Tank 3301 | -8/Materials | Identified exit to Storage 3468 | -8/Materials | First assault squad dispatched 3510 | -8/Materials | Entered Storage 3610 | -8/Storage | Core integrity fell below 20% 3832 | -8/Storage | Destroyed by G-47 Trooper with Particle Gun Last Messages --------------- 03777_ Connecting with Door Terminal... >>Open(Door) Sealed Heavy Doors opened. 03808_ G-47 Trooper IFF system glitched. 03812_ G-47 Trooper system terminally corrupted. 03812_ Imp. Heat Sink fried. 03813_ Critical hit (Burn: +37). 03815_ Imp. Medium Laser broken. 03815_ Overheating: Short circuit. 03817_ G-47 Trooper destroyed. 03817_ Door malfunctions. 03825_ Imp. Heat Sink fried. 03825_ Particle Gun fried. 03825_ G-47 Trooper destroyed. 03829_ Chain reaction triggered in Lgt. Nuclear Core. 03829_ G-47 Trooper destroyed. 03831_ Chain reaction triggered in Lgt. Nuclear Core. 03831_ Destroyed Imp. Heat Sink. Map ----- +----------------------------------------------------+ | | | | | | | | | | | | | | | | | | | | | | | | | | | | | | | | | | | ?????????????????????????????????#######?????????? | | ???????????????????????###########"""""########### | | ???????????????????????#! !# | | ???????????????????????#! !# !% % | | ???????????????????????#! !# % % | | ???????????#############! !# % ####### ########### | | ???????????? #;; ## #???????? | | ?????????????????# % * T# T "" ?????? | | ???????????????### =% !@## =%" """#????# | | ???????#########%# %g ####[ # R"#????# | | ???????# [!# #????# + """#????# | | ???????# "T" [# %###### # ###?????# | | ???????# %# !! # #??????# | | ???????# + !!% # ##??????# | | ???????# *! # %!* ###""T""###???????? | | ???????# * # ############?#"""""#?????????? | | ???????# # #????????????#######?????????? | | ???????# # #????????????????????????????? | | ???????#####"T"### #????????????????????????????? | | ???????????#"""#?# #????????????????????????????? | | ???????????#####?# #????????????????????????????? | | ?????????????????# #????????????????????????????? | | ?????????????????#% #????????????????????????????? | | ????????????????? %#????????????????????????????? | | ????????????????? ????????????????????????????? | | ????????????????? #????????????????????????????? | | ?????????????????#+#?????????????????????????????? | | ?????????????????? ??????????????????????????????? | | ?????????????????? ??????????????????????????????? | | ?????????????????????????????????????????????????? | | ?????????????????????????????????????????????????? | | ?????????????????????????????????????????????????? | | ?????????????????????????????????????????????????? | +----------------------------------------------------+ Best States ------------- Heat Dissipation 55 Energy Generation 14 Energy Capacity 275 Matter Stores 300 Matter Capacity 300 Sight Range 16 Terrain Scan Density 10 Armor Coverage 300 Resistance: TH 10 Evasion (%) 55 Recoil Reduction 3 Offensive Hacking 10 Item Schematics ----------------- Hcp. Storage Unit | -10/Materials | Hacked Robot Schematics ------------------ None Fabricated ------------ Nothing Repaired ---------- Nothing Studied --------- None Alien Tech Used ----------------- None Achievements -------------- None Challenges ------------ None Game ------ Seed RelayFlyingMagmablaster Manual? 0 Play Time 00:27:22 Cumulative 343.7 hours Start 2025.11.07 @ 20:35:31 End 2025.11.08 @ 00:15:08 Sessions 1 Manual Loads 0 Difficulty Rogue Special Mode None Game No. 242 Rogue 242 Adventurer 0 Explorer 0 Win Type - Total 22 Types 9/0/7/1/1/0/1/1/1/1 Lore% 82 Gallery% 78 Achievement% 62 Wizard Run 0 Options --------- Layout 1 ASCII 0 Keyboard 0 Movement Mouse Keybinds 0 Fullscreen 2 Font 24/Smallcaps Map View 50x35 Zoom Use 0% Tactical HUD 1 Map Filters NONE Filters NONE Steam 1 RUN: 49556339-97e8-4a20-b83f-13ea19e09e0e